fUSD/lending_fUSD_20250308
["ID","MTS","AMOUNT","RATE_DAILY","PERIOD"]
[355637015,1741416654118,-500.0,8.767e-05,2]
[355637016,1741416654127,-500.0,8.767e-05,2]
[355637017,1741416654136,-911.24,8.767e-05,2]
[355637018,1741416654146,-1244.21,8.767e-05,2]
[355637019,1741416654155,-500.0,8.767e-05,2]
[355637020,1741416654165,-940.27,8.767e-05,2]
[355637021,1741416654174,-500.0,8.767e-05,2]
[355637022,1741416654184,-1141.82,8.767e-05,2]
[355637023,1741416654195,-4057.4,8.767e-05,2]
[355637024,1741416654205,-500.0,8.767e-05,2]
[355637025,1741416654220,-949.87,8.767e-05,2]
[355637026,1741416654229,-882.01,8.767e-05,2]
[355637027,1741416654239,-1044.29,8.767e-05,2]
[355637028,1741416654247,-890.66103265,8.767e-05,2]
[355637029,1741416654265,-501.30896735,8.767e-05,2]
[355637030,1741416654274,-261.89633843,8.767e-05,2]
[355637031,1741416654303,-238.10366157,8.767e-05,2]
[355637032,1741416654312,-158.65174644,8.767e-05,2]
[355637033,1741416654323,-829.14825356,8.767e-05,2]
[355637034,1741416654332,-1503.6,8.767e-05,2]
[355637035,1741416654342,-2071.12,8.767e-05,2]
[355637036,1741416654351,-1739.36,8.767e-05,2]
[355637037,1741416654361,-788.3,8.767e-05,2]
[355637038,1741416654370,-226.82695947,8.767e-05,2]
[355637039,1741416654390,-273.17304053,8.767e-05,2]
[355637040,1741416654399,-141.7083257,8.767e-05,2]
[355637041,1741416654410,-358.2916743,8.767e-05,2]
[355637042,1741416654419,-500.0,8.767e-05,2]
[355637043,1741416654428,-217.82919974,8.767e-05,2]
[355637044,1741416654438,-80.17912596,8.767e-05,2]
[355637045,1741416654952,-419.82087404,8.767e-05,2]
[355637046,1741416654962,-812.07,8.767e-05,2]
[355637047,1741416654971,-938.25117702,8.767e-05,2]
[355637048,1741416654983,-328.49882298,8.767e-05,2]
[355637049,1741416654992,-238.86861445,8.767e-05,2]
[355637050,1741416655003,-531.16138555,8.767e-05,2]
[355637051,1741416655012,-386.48936264,8.767e-05,2]
[355637052,1741416655030,-1856.96063736,8.767e-05,2]
[355637053,1741416655039,-151.54422039,8.767e-05,2]
[355637054,1741416655070,-495.68719811,8.767e-05,2]
[355637055,1741416655082,-515.6385815,8.767e-05,2]
[355637056,1741416655091,-1597.68,8.767e-05,2]
[355637057,1741416655101,-1405.97,8.767e-05,2]
[355637058,1741416655111,-500.0,8.767e-05,2]
[355637059,1741416655121,-821.99,8.767e-05,2]
[355637060,1741416655130,-1889.14,8.767e-05,2]
[355637061,1741416655140,-570.9,8.767e-05,2]
[355637062,1741416655150,-2278.07,8.767e-05,2]
[355637063,1741416655160,-500.0,8.767e-05,2]
[355637064,1741416655170,-2472.22,8.767e-05,2]
[355637065,1741416655180,-500.0,8.767e-05,2]
[355637066,1741416655190,-912.18,8.767e-05,2]
[355637067,1741416655200,-310.78500558,8.767e-05,2]
[355637068,1741416655209,-1325.83,8.767e-05,2]
[355637069,1741416655219,-841.46,8.767e-05,2]
[355637070,1741416655228,-2543.0,8.767e-05,2]
[355637071,1741416655238,-553.36,8.767e-05,2]
[355637072,1741416655248,-2187.11,8.767e-05,2]
[355637073,1741416655258,-936.52,8.767e-05,2]
[355637074,1741416655268,-500.0,8.767e-05,2]
[355637075,1741416655278,-500.36,8.767e-05,2]
[355637076,1741416655287,-500.0,8.767e-05,2]
[355637077,1741416655296,-500.0,8.767e-05,2]
[355637078,1741416655306,-2236.97,8.767e-05,2]
[355637079,1741416655315,-500.0,8.767e-05,2]
[355637080,1741416655325,-500.0,8.767e-05,2]
[355637081,1741416655335,-548.15318675,8.767e-05,2]
[355637082,1741416655345,-1971.62,8.767e-05,2]
[355637083,1741416655355,-535.76212221,8.767e-05,2]
[355637084,1741416655365,-1497.0,8.767e-05,2]
[355637085,1741416655375,-596.15,8.767e-05,2]
[355637086,1741416655384,-824.23,8.767e-05,2]
[355637087,1741416655394,-873.61,8.767e-05,2]
[355637088,1741416655404,-1114.88,8.767e-05,2]
[355637089,1741416655413,-500.0,8.767e-05,2]
[355637090,1741416655423,-2370.29,8.767e-05,2]
[355637091,1741416655432,-55.07513127,8.767e-05,2]
[355637092,1741416655514,-444.92486873,8.767e-05,2]
[355637093,1741416655523,-1572.94,8.767e-05,2]
[355637094,1741416655533,-704.4,8.767e-05,2]
[355637095,1741416655543,-500.0,8.767e-05,2]
[355637096,1741416655554,-500.0,8.767e-05,2]
[355637097,1741416655564,-1111.98,8.767e-05,2]
[355637098,1741416655574,-2355.58,8.767e-05,2]
[355637099,1741416655585,-892.89,8.767e-05,2]
[355637100,1741416655595,-158.191225,8.767e-05,2]
[355637101,1741416655606,-660.15,8.767e-05,2]
[355637102,1741416655616,-500.0,8.767e-05,2]
[355637103,1741416655625,-1074.13211011,8.767e-05,2]
[355637104,1741416655638,-335.65788989,8.767e-05,2]
[355637105,1741416655648,-1478.09,8.767e-05,2]
[355637106,1741416655659,-500.0,8.767e-05,2]
[355637107,1741416655668,-1231.91,8.767e-05,2]
[355637108,1741416655678,-500.0,8.767e-05,2]
[355637109,1741416655688,-1617.96,8.767e-05,2]
[355637110,1741416655697,-603.84,8.767e-05,2]
[355637111,1741416655706,-500.0,8.767e-05,2]
[355637112,1741416655715,-1567.28,8.767e-05,2]
[355637113,1741416655724,-1207.1,8.767e-05,2]
[355637114,1741416655734,-2350.06,8.767e-05,2]
[355637115,1741416655743,-686.59,8.767e-05,2]
[355637116,1741416655753,-2603.93,8.767e-05,2]
[355637117,1741416655762,-1154.16,8.767e-05,2]
[355637118,1741416655771,-2865.86,8.767e-05,2]
[355637119,1741416655781,-500.0,8.767e-05,2]
[355637120,1741416655791,-3026.37,8.767e-05,2]
[355637121,1741416655800,-3731.1,8.767e-05,2]
[355637122,1741416655809,-583.32581198,8.767e-05,2]
[355637123,1741416655819,-500.0,8.767e-05,2]
[355637124,1741416655828,-500.0,8.767e-05,2]
[355637125,1741416655838,-1359.66,8.767e-05,2]
[355637126,1741416655848,-2353.05,8.767e-05,2]
[355637127,1741416655859,-899.19,8.767e-05,2]
[355637128,1741416655875,-854.0,8.767e-05,2]
[355637129,1741416655887,-500.0,8.767e-05,2]
[355637130,1741416655897,-1507.29,8.767e-05,2]
[355637131,1741416655908,-2238.1,8.767e-05,2]
[355637132,1741416655919,-2906.82,8.767e-05,2]
[355637133,1741416655930,-500.0,8.767e-05,2]
[355637134,1741416655941,-500.0,8.767e-05,2]
[355637135,1741416655950,-500.0,8.767e-05,2]
[355637136,1741416655960,-1126.39,8.767e-05,2]
[355637137,1741416655970,-500.0,8.767e-05,2]
[355637138,1741416655979,-5722.19,8.767e-05,2]
[355637139,1741416655989,-5008.42,8.767e-05,2]
[355637140,1741416656184,-4308.08,8.767e-05,2]
[355637141,1741416656195,-500.0,8.767e-05,2]
[355637142,1741416656204,-651.81,8.767e-05,2]
[355637143,1741416656214,-500.0,8.767e-05,2]
[355637144,1741416656224,-1235.97,8.767e-05,2]
[355637145,1741416656233,-502.77,8.767e-05,2]
[355637146,1741416656242,-768.15,8.767e-05,2]
[355637147,1741416656252,-500.0,8.767e-05,2]
[355637148,1741416656262,-3940.36,8.767e-05,2]
[355637149,1741416656271,-500.0,8.767e-05,2]
[355637150,1741416656281,-6455.74,8.767e-05,2]
[355637151,1741416656290,-500.0,8.767e-05,2]
[355637152,1741416656300,-1117.99,8.767e-05,2]
[355637153,1741416656310,-736.61,8.767e-05,2]
[355637154,1741416656320,-3980.85,8.767e-05,2]
[355637155,1741416656329,-5336.18,8.767e-05,2]
[355637156,1741416656339,-815.72,8.767e-05,2]
[355637157,1741416656349,-4032.99,8.767e-05,2]
[355637158,1741416656359,-500.0,8.767e-05,2]
[355637159,1741416656368,-484.9,8.767e-05,2]
[355637160,1741416656378,-3347.04,8.767e-05,2]
[355637161,1741416656388,-2011.41,8.767e-05,2]
[355637162,1741416656397,-500.0,8.767e-05,2]
[355637163,1741416656407,-2246.26,8.767e-05,2]
[355637164,1741416656416,-1587.4,8.767e-05,2]
[355637165,1741416656426,-11642.79,8.767e-05,2]
[355637166,1741416656435,-500.0,8.767e-05,2]
[355637167,1741416656445,-769.16,8.767e-05,2]
[355637168,1741416656454,-500.0,8.767e-05,2]
[355637169,1741416656463,-3483.72,8.767e-05,2]
[355637170,1741416656472,-3892.4,8.767e-05,2]
[355637171,1741416656481,-500.0,8.767e-05,2]
[355637172,1741416656490,-500.0,8.767e-05,2]
[355637173,1741416656500,-500.0,8.767e-05,2]
[355637174,1741416656512,-5398.29,8.767e-05,2]
[355637175,1741416656521,-500.0,8.767e-05,2]
[355637176,1741416656530,-500.0,8.767e-05,2]
[355637177,1741416656539,-500.0,8.767e-05,2]
[355637178,1741416656549,-1001.55,8.767e-05,2]
[355637179,1741416656558,-546.82406873,8.767e-05,2]
[355637180,1741416656567,-969.97,8.767e-05,2]
[355637181,1741416656576,-8294.5,8.767e-05,2]
[355637182,1741416656585,-3434.58,8.767e-05,2]
[355637183,1741416656594,-1616.03,8.767e-05,2]
[355637184,1741416656603,-1339.47,8.767e-05,2]
[355637185,1741416656613,-3721.4,8.767e-05,2]
[355637186,1741416656622,-1421.06,8.767e-05,2]
[355637187,1741416656631,-948.2,8.767e-05,2]
[355637188,1741416656640,-457.87907177,8.767e-05,2]
[355637189,1741416656649,-13143.98,8.767e-05,2]
[355637190,1741416656658,-500.0,8.767e-05,2]
[355637191,1741416656667,-1045.68,8.767e-05,2]
[355637192,1741416656676,-1665.61,8.767e-05,2]
[355637193,1741416656685,-584.6,8.767e-05,2]
[355637194,1741416656694,-500.0,8.767e-05,2]
[355637195,1741416656703,-2850.6,8.767e-05,2]
[355637196,1741416656712,-500.0,8.767e-05,2]
[355637197,1741416656721,-500.0,8.767e-05,2]
[355637198,1741416656730,-1452.41,8.767e-05,2]
[355637199,1741416656739,-1087.27,8.767e-05,2]
[355637200,1741416656748,-1167.28,8.767e-05,2]
[355637201,1741416656757,-3041.96,8.767e-05,2]
[355637202,1741416656766,-4753.08,8.767e-05,2]
[355637203,1741416656775,-751.83,8.767e-05,2]
[355637204,1741416656785,-1992.23,8.767e-05,2]
[355637205,1741416656794,-1164.6,8.767e-05,2]
[355637206,1741416656802,-694.48,8.767e-05,2]
[355637207,1741416656811,-500.0,8.767e-05,2]
[355637208,1741416656819,-500.0,8.767e-05,2]
[355637209,1741416656828,-2941.33,8.767e-05,2]
[355637210,1741416656836,-1894.5,8.767e-05,2]
[355637211,1741416656845,-5940.7,8.767e-05,2]
[355637212,1741416656854,-1017.04,8.767e-05,2]
[355637213,1741416656864,-1815.2,8.767e-05,2]
[355637214,1741416656873,-500.0,8.767e-05,2]
[355637215,1741416656882,-528.74,8.767e-05,2]
[355637216,1741416656891,-6747.11,8.767e-05,2]
[355637217,1741416656901,-615.12,8.767e-05,2]
[355637218,1741416656910,-500.0,8.767e-05,2]
[355637219,1741416656920,-500.0,8.767e-05,2]
[355637220,1741416656929,-500.0,8.767e-05,2]
[355637221,1741416656938,-4517.93,8.767e-05,2]
[355637222,1741416656947,-500.0,8.767e-05,2]
[355637223,1741416656956,-4854.12,8.767e-05,2]
[355637224,1741416656966,-500.0,8.767e-05,2]
[355637225,1741416656976,-902.59,8.767e-05,2]
[355637226,1741416656985,-500.0,8.767e-05,2]
[355637227,1741416656995,-1274.69,8.767e-05,2]
[355637228,1741416657005,-2552.61,8.767e-05,2]
[355637229,1741416657015,-3005.31,8.767e-05,2]
[355637230,1741416657025,-500.0,8.767e-05,2]
[355637231,1741416657035,-703.09,8.767e-05,2]
[355637232,1741416657044,-500.0,8.767e-05,2]
[355637233,1741416657054,-500.0,8.767e-05,2]
[355637234,1741416657064,-6062.62,8.767e-05,2]
[355637235,1741416657074,-500.0,8.767e-05,2]
[355637236,1741416657083,-500.0,8.767e-05,2]
[355637237,1741416657092,-839.95,8.767e-05,2]
[355637238,1741416657101,-7291.25,8.767e-05,2]
[355637239,1741416657110,-500.0,8.767e-05,2]
[355637240,1741416657120,-1091.74,8.767e-05,2]
[355637241,1741416657129,-500.0,8.767e-05,2]
[355637242,1741416657139,-2233.36,8.767e-05,2]
[355637243,1741416657148,-1304.23,8.767e-05,2]
[355637244,1741416657158,-500.0,8.767e-05,2]
[355637245,1741416657167,-1439.31,8.767e-05,2]
[355637246,1741416657176,-500.0,8.767e-05,2]
[355637247,1741416657186,-500.0,8.767e-05,2]
[355637248,1741416657195,-2844.0,8.767e-05,2]
[355637249,1741416657204,-258.048911,8.767e-05,2]
[355637250,1741416657214,-1327.52,8.767e-05,2]
[355637251,1741416657223,-500.0,8.767e-05,2]
[355637252,1741416657233,-500.0,8.767e-05,2]
[355637253,1741416657241,-500.0,8.767e-05,2]
[355637254,1741416657251,-1836.18,8.767e-05,2]
[355637255,1741416657260,-1931.09,8.767e-05,2]
[355637256,1741416657269,-500.0,8.767e-05,2]
[355637257,1741416657278,-534.68529234,8.767e-05,2]
[355637258,1741416657287,-4505.17,8.767e-05,2]
[355637259,1741416657297,-3165.59,8.767e-05,2]
[355637260,1741416657307,-3080.74,8.767e-05,2]
[355637261,1741416657316,-500.0,8.767e-05,2]
[355637262,1741416657325,-500.0,8.767e-05,2]
[355637263,1741416657334,-500.0,8.767e-05,2]
[355637264,1741416657343,-500.0,8.767e-05,2]
[355637265,1741416657352,-1611.75,8.767e-05,2]
[355637266,1741416657361,-3526.46,8.767e-05,2]
[355637267,1741416657369,-4131.86,8.767e-05,2]
[355637268,1741416657379,-500.0,8.767e-05,2]
[355637269,1741416657387,-500.0,8.767e-05,2]
[355637270,1741416657396,-5639.67,8.767e-05,2]
[355637271,1741416657404,-500.0,8.767e-05,2]
[355637272,1741416657413,-11555.12,8.767e-05,2]
[355637273,1741416657422,-1050.07,8.767e-05,2]
[355637274,1741416657430,-7955.67,8.767e-05,2]
[355637275,1741416657439,-500.0,8.767e-05,2]
[355637276,1741416657448,-550.51442963,8.767e-05,2]
[355637277,1741416657456,-500.0,8.767e-05,2]
[355637278,1741416657466,-500.0,8.767e-05,2]
[355637279,1741416657475,-1540.52,8.767e-05,2]
[355637280,1741416657484,-500.0,8.767e-05,2]
[355637281,1741416657493,-553.14,8.767e-05,2]
[355637282,1741416657502,-3457.27,8.767e-05,2]
[355637283,1741416657515,-500.0,8.767e-05,2]
[355637284,1741416657525,-1458.07,8.767e-05,2]
[355637285,1741416657534,-4318.99,8.767e-05,2]
[355637286,1741416657543,-2221.86,8.767e-05,2]
[355637287,1741416657552,-500.0,8.767e-05,2]
[355637288,1741416657561,-20024.51,8.767e-05,2]
[355637289,1741416657570,-607.05,8.767e-05,2]
[355637290,1741416657580,-523.08988954,8.767e-05,2]
[355637291,1741416657591,-5038.55,8.767e-05,2]
[355637292,1741416657600,-626.99246567,8.767e-05,2]
[355637293,1741416657608,-3543.88,8.767e-05,2]
[355637294,1741416657614,-500.0,8.767e-05,2]
[355637295,1741416657622,-1535.82,8.767e-05,2]
[355637296,1741416657632,-500.0,8.767e-05,2]
[355637297,1741416657641,-500.0,8.767e-05,2]
[355637298,1741416657650,-500.0,8.767e-05,2]
[355637299,1741416657659,-500.0,8.767e-05,2]
[355637300,1741416657669,-500.0,8.767e-05,2]
[355637301,1741416657678,-500.0,8.767e-05,2]
[355637302,1741416657687,-2888.16,8.767e-05,2]
[355637303,1741416657697,-500.0,8.767e-05,2]
[355637304,1741416657706,-3385.47,8.767e-05,2]
[355637305,1741416657715,-3566.52,8.767e-05,2]
[355637306,1741416657724,-500.0,8.767e-05,2]
[355637307,1741416657734,-2517.7,8.767e-05,2]
[355637308,1741416657743,-500.0,8.767e-05,2]
[355637309,1741416657752,-3095.36,8.767e-05,2]
[355637310,1741416657762,-6855.7,8.767e-05,2]
[355637311,1741416657771,-500.0,8.767e-05,2]
[355637312,1741416657780,-500.0,8.767e-05,2]
[355637313,1741416657790,-5573.12,8.767e-05,2]
[355637314,1741416657799,-500.0,8.767e-05,2]
[355637315,1741416657808,-1221.14,8.767e-05,2]
[355637316,1741416657817,-7229.77,8.767e-05,2]
[355637317,1741416657826,-710.77,8.767e-05,2]
[355637318,1741416657835,-2235.77,8.767e-05,2]
[355637319,1741416657843,-500.0,8.767e-05,2]
[355637320,1741416657853,-4334.01,8.767e-05,2]
[355637321,1741416657862,-187.61387491,8.767e-05,2]
[355637322,1741416657870,-1636.54,8.767e-05,2]
[355637323,1741416657878,-263.93,8.767e-05,2]
[355637324,1741416657887,-243.76,8.767e-05,2]
[355637325,1741416657896,-1766.91,8.767e-05,2]
[355637326,1741416657906,-933.37,8.767e-05,2]
[355637327,1741416657915,-500.0,8.767e-05,2]
[355637328,1741416657923,-1698.51,8.767e-05,2]
[355637329,1741416657932,-2900.2,8.767e-05,2]
[355637330,1741416657941,-7792.67,8.767e-05,2]
[355637331,1741416657950,-12047.07,8.767e-05,2]
[355637332,1741416657959,-2595.39,8.767e-05,2]
[355637333,1741416657970,-670.32,8.767e-05,2]
[355637334,1741416657979,-500.0,8.767e-05,2]
[355637335,1741416657989,-571.74,8.767e-05,2]
[355637336,1741416657999,-500.0,8.767e-05,2]
[355637337,1741416658007,-500.0,8.767e-05,2]
[355637338,1741416658016,-2310.08,8.767e-05,2]
[355637339,1741416658025,-1350.51,8.767e-05,2]
[355637340,1741416658034,-25520.53,8.767e-05,2]
[355637341,1741416658043,-3418.48,8.767e-05,2]
[355637342,1741416658052,-500.0,8.767e-05,2]
[355637343,1741416658061,-4156.48,8.767e-05,2]
[355637344,1741416658069,-500.0,8.767e-05,2]
[355637345,1741416658079,-500.0,8.767e-05,2]
[355637346,1741416658088,-2100.65,8.767e-05,2]
[355637347,1741416658097,-500.0,8.767e-05,2]
[355637348,1741416658107,-755.87,8.767e-05,2]
[355637349,1741416658117,-3050.75,8.767e-05,2]
[355637350,1741416658126,-2323.94,8.767e-05,2]
[355637351,1741416658136,-1874.37,8.767e-05,2]
[355637352,1741416658145,-2340.5,8.767e-05,2]
[355637353,1741416658155,-973.25,8.767e-05,2]
[355637354,1741416658165,-1560.78,8.767e-05,2]
[355637355,1741416658175,-1557.78,8.767e-05,2]
[355637356,1741416658184,-1356.78,8.767e-05,2]
[355637357,1741416658193,-2554.2,8.767e-05,2]
[355637358,1741416658203,-500.0,8.767e-05,2]
[355637359,1741416658214,-500.0,8.767e-05,2]
[355637360,1741416658224,-500.0,8.767e-05,2]
[355637361,1741416658233,-500.0,8.767e-05,2]
[355637362,1741416658242,-3683.41,8.767e-05,2]
[355637363,1741416658251,-2494.61,8.767e-05,2]
[355637364,1741416658260,-500.0,8.767e-05,2]
[355637365,1741416658269,-1697.09,8.767e-05,2]
[355637366,1741416658278,-572.07,8.767e-05,2]
[355637367,1741416658286,-500.0,8.767e-05,2]
[355637368,1741416658294,-1267.56,8.767e-05,2]
[355637369,1741416658303,-883.13,8.767e-05,2]
[355637370,1741416658312,-1954.02,8.767e-05,2]
[355637371,1741416658321,-1779.82,8.767e-05,2]
[355637372,1741416658331,-500.0,8.767e-05,2]
[355637373,1741416658340,-1223.04,8.767e-05,2]
[355637374,1741416658349,-500.0,8.767e-05,2]
[355637375,1741416658358,-1003.35,8.767e-05,2]
[355637376,1741416658367,-500.0,8.767e-05,2]
[355637377,1741416658526,-159.0,8.767e-05,3]
[355637378,1741416658535,-150.0,8.772e-05,2]
[355637379,1741416658546,-150.0,8.774e-05,2]
[355637380,1741416658555,-150.0,8.776e-05,2]
[355637381,1741416658564,-150.0,8.778e-05,2]
[355637382,1741416658573,-150.0,8.78e-05,2]
[355637383,1741416658583,-1000.0,8.788e-05,2]
[355637384,1741416658592,-150.0,8.788e-05,2]
[355637385,1741416658601,-242.33273081,8.791e-05,2]
[355637386,1741416658610,-300.0,8.792e-05,2]
[355637387,1741416658619,-150.0,8.794e-05,2]
[355637388,1741416658628,-300.0,8.797e-05,2]
[355637389,1741416658637,-151.70880685,8.798e-05,2]
[355637390,1741416658646,-1000.0,8.801e-05,2]
[355637391,1741416658655,-300.0,8.802e-05,2]
[355637392,1741416658664,-1000.0,8.802e-05,2]
[355637393,1741416658674,-162.19887289,8.812e-05,2]
[355637394,1741416658683,-300.0,8.817e-05,2]
[355637395,1741416658692,-150.0,8.819e-05,2]
[355637396,1741416658702,-300.0,8.823e-05,2]
[355637397,1741416658712,-300.0,8.837e-05,2]
[355637398,1741416658721,-500.0,8.84e-05,2]
[355637399,1741416658731,-500.0,8.84e-05,2]
[355637400,1741416658740,-500.0,8.84e-05,2]
[355637401,1741416658749,-500.0,8.84e-05,2]
[355637402,1741416658758,-150.0,8.844e-05,2]
[355637403,1741416658767,-150.0,8.851e-05,2]
[355637404,1741416658776,-150.0,8.855e-05,2]
[355637405,1741416658784,-300.0,8.862e-05,2]
[355637406,1741416658792,-150.0,8.863e-05,2]
[355637407,1741416658801,-189.4957834,8.866e-05,2]
[355637408,1741416658810,-300.0,8.873e-05,2]
[355637409,1741416658819,-150.0,8.883e-05,2]
[355637410,1741416658828,-150.0,8.893e-05,2]
[355637411,1741416658837,-2037.379,8.894e-05,2]
[355637412,1741416658847,-1282.49,8.894e-05,2]
[355637413,1741416658856,-152.397,8.894e-05,2]
[355637414,1741416658864,-1459.0,8.894e-05,2]
[355637415,1741416658872,-641.832,8.894e-05,2]
[355637416,1741416658882,-150.398,8.894e-05,2]
[355637417,1741416658891,-573.108,8.894e-05,2]
[355637418,1741416658900,-789.0,8.894e-05,2]
[355637419,1741416658910,-541.0,8.894e-05,2]
[355637420,1741416658918,-1270.0,8.894e-05,2]
[355637421,1741416658927,-1428.0,8.894e-05,2]
[355637422,1741416658936,-909.0,8.894e-05,2]
[355637423,1741416658945,-4085.25,8.894e-05,2]
[355637424,1741416658954,-3931.0,8.894e-05,2]
[355637425,1741416658963,-150.0,8.894e-05,2]
[355637426,1741416658973,-1012.0,8.894e-05,2]
[355637427,1741416658983,-150.0,8.894e-05,2]
[355637428,1741416658992,-150.0,8.894e-05,2]
[355637429,1741416659002,-1113.0,8.894e-05,2]
[355637430,1741416659012,-300.0,8.913e-05,2]
[355637431,1741416659022,-150.0,8.913e-05,2]
[355637432,1741416659032,-1000.0,8.918e-05,2]
[355637433,1741416659042,-150.0,8.921e-05,2]
[355637434,1741416659051,-150.0,8.921e-05,2]
[355637435,1741416659060,-150.0,8.933e-05,2]
[355637436,1741416659070,-150.0,8.934e-05,2]
[355637437,1741416659079,-150.0,8.936e-05,2]
[355637438,1741416659088,-300.0,8.938e-05,2]
[355637439,1741416659097,-150.0,8.939e-05,2]
[355637440,1741416659107,-300.0,8.94e-05,2]
[355637441,1741416659116,-150.0,8.942e-05,2]
[355637442,1741416659125,-300.0,8.945e-05,2]
[355637443,1741416659135,-150.0,8.949e-05,2]
[355637444,1741416659143,-150.0,8.953e-05,2]
[355637445,1741416659152,-300.0,8.956e-05,2]
[355637446,1741416659161,-150.0,8.957e-05,2]
[355637447,1741416659170,-150.0,8.969e-05,2]
[355637448,1741416659180,-150.0,8.971e-05,2]
[355637449,1741416659188,-1000.0,8.974e-05,2]
[355637450,1741416659196,-150.0,8.977e-05,2]
[355637451,1741416659204,-150.0,8.982e-05,2]
[355637452,1741416659213,-150.0,8.987e-05,2]
[355637453,1741416659221,-150.0,8.987e-05,2]
[355637454,1741416659230,-150.0,8.99e-05,2]
[355637455,1741416659239,-150.0,8.993e-05,2]
[355637456,1741416659248,-300.0,9e-05,2]
[355637457,1741416659257,-1906.9851,9e-05,2]
[355637458,1741416659266,-1000.0,9e-05,2]
[355637459,1741416659275,-1312.4275,9e-05,2]
[355637460,1741416659284,-150.0,9.006e-05,2]
[355637461,1741416659293,-550.0,9.011e-05,2]
[355637462,1741416659302,-1000.0,9.017e-05,2]
[355637463,1741416659312,-300.0,9.021e-05,2]
[355637464,1741416659321,-150.0,9.022e-05,2]
[355637465,1741416659330,-151.76065552,9.026e-05,2]
[355637466,1741416659339,-550.0,9.03e-05,2]
[355637467,1741416659348,-1000.0,9.035e-05,2]
[355637468,1741416659357,-1095.154916,9.035e-05,2]
[355637469,1741416659367,-517.1635907,9.035e-05,2]
[355637470,1741416659377,-1089.7308513,9.035e-05,2]
[355637471,1741416659386,-4419.1735777,9.035e-05,2]
[355637472,1741416659396,-6331.4426974,9.035e-05,2]
[355637473,1741416659405,-150.90766176,9.038e-05,2]
[355637474,1741416659415,-420.0,9.039e-05,2]
[355637475,1741416659425,-1000.0,9.04e-05,2]
[355637476,1741416659434,-2506.35,9.04e-05,2]
[355637477,1741416659444,-500.0,9.04e-05,2]
[355637478,1741416659453,-408.23816608,9.04e-05,2]
[355637479,1741416659463,-234.668175,9.041e-05,2]
[355637480,1741416659473,-380.520373,9.041e-05,2]
[355637481,1741416659483,-500.0,9.041e-05,2]
[355637482,1741416659492,-500.0,9.041e-05,2]
[355637483,1741416659501,-500.0,9.041e-05,2]
[355637484,1741416659517,-500.0,9.041e-05,2]
[355637485,1741416659527,-924.18,9.041e-05,2]
[355637486,1741416659536,-435.71398378,9.041e-05,2]
[355637487,1741416659546,-232.60137044,9.041e-05,2]
[355637488,1741416659556,-500.0,9.041e-05,2]
[355637489,1741416659565,-859.92,9.041e-05,2]
[355637490,1741416659574,-500.0,9.041e-05,2]
[355637491,1741416659585,-990.77,9.041e-05,2]
[355637492,1741416659596,-500.0,9.041e-05,2]
[355637493,1741416659606,-500.0,9.041e-05,2]
[355637494,1741416659615,-764.8,9.041e-05,2]
[355637495,1741416659624,-1033.22,9.041e-05,2]
[355637496,1741416659634,-500.0,9.041e-05,2]
[355637497,1741416659643,-1154.68,9.041e-05,2]
[355637498,1741416659651,-1177.51,9.041e-05,2]
[355637499,1741416659660,-500.0,9.041e-05,2]
[355637500,1741416659669,-544.19128891,9.041e-05,2]
[355637501,1741416659678,-731.91,9.041e-05,2]
[355637502,1741416659687,-500.0,9.041e-05,2]
[355637503,1741416659698,-500.0,9.041e-05,2]
[355637504,1741416659707,-500.0,9.041e-05,2]
[355637505,1741416659716,-777.92,9.041e-05,2]
[355637506,1741416659725,-667.88,9.041e-05,2]
[355637507,1741416659734,-500.0,9.041e-05,2]
[355637508,1741416659743,-1149.41,9.041e-05,2]
[355637509,1741416659752,-996.73,9.041e-05,2]
[355637510,1741416659761,-500.0,9.041e-05,2]
[355637511,1741416659770,-500.0,9.041e-05,2]
[355637512,1741416659779,-500.0,9.041e-05,2]
[355637513,1741416659789,-979.4,9.041e-05,2]
[355637514,1741416659798,-749.83,9.041e-05,2]